[Event "European Online Club-ch-F 2021"]
[Site "Online"]
[Date "2021.03.27"]
[Round "9.9"]
[White "Sochacki, Christophe"]
[Black "Kovalev, Vladislav"]
[Result "0-1"]
[ECO "D00"]
[WhiteElo "2477"]
[BlackElo "2648"]
[Annotator "ChessBase"]
[PlyCount "74"]
[EventDate "2021.03.27"]
[EventType "team-tourn"]
[EventCountry "NET"]
[SourceTitle "playchess.com"]
[Source "ChessBase"]
[SourceQuality "1"]
[TimeControl "900+5"]

1. d4 {[%emt 0:00:00]} Nf6 {[%emt 0:00:02]} 2. Nc3 {[%emt 0:00:02]} d5 {[%emt 0:00:02]} 3. Bf4 {[%emt 0:00:02]} a6 {[%emt 0:00:01]} 4. e3 {[%emt 0:00:11]} e6 {[%emt 0:00:04]} 5. g4 {[%emt 0:00:25]} Bb4 {[%emt 0:00:44]} 6. f3 {[%emt 0:00:35]} c5 {[%emt 0:00:23]} 7. a3 {[%emt 0:00:11]} Bxc3+ {[%emt 0:00:06]} 8. bxc3 {[%emt 0:00:02]} Qa5 {[%emt 0:00:01]} 9. Qd2 {[%emt 0:00:11]} Nc6 {[%emt 0:00:10]} 10. h4 {[%emt 0:01:10]} Nd7 {[%emt 0:00:57]} 11. Bd6 {[%emt 0:00:20]} Qb6 {[%emt 0:00:56]} 12. Ne2 {[%emt 0:00:55]} Nxd4 {[%emt 0:00:19]} 13. cxd4 {[%emt 0:00:18]} Qxd6 {[%emt 0:00:02]} 14. Kf2 {[%emt 0:01:13]} b6 {[%emt 0:02:20]} 15. h5 {[%emt 0:00:51]} Bb7 {[%emt 0:00:11]} 16. Rb1 {[%emt 0:00:28]} cxd4 {[%emt 0:00:45]} 17. Nxd4 {[%emt 0:00:24]} Qxa3 {[%emt 0:00:12]} 18. g5 {[%emt 0:00:02]} Qd6 {[%emt 0:00:32]} 19. Bh3 {[%emt 0:00:30]} Ne5 {[%emt 0:00:30]} 20. Qc3 {[%emt 0:01:23]} Rc8 {[%emt 0:00:09]} 21. Qb3 {[%emt 0:00:48]} b5 {[%emt 0:00:08]} 22. f4 {[%emt 0:00:54]} Nc6 {[%emt 0:00:12]} 23. Nf3 {[%emt 0:00:06]} h6 {[%emt 0:01:03]} 24. Qb2 {[%emt 0:00:12]} d4 {[%emt 0:00:18]} 25. Kg3 {[%emt 0:00:50]} hxg5 {[%emt 0:00:23]} 26. Nxg5 {[%emt 0:00:01]} Rxh5 {[%emt 0:00:13]} 27. Ne4 {[%emt 0:00:19]} Qd5 {[%emt 0:03:29]} 28. Bg2 {[%emt 0:00:01]} Rxh1 {[%emt 0:00:01]} 29. Rxh1 {[%emt 0:00:10]} Ke7 {[%emt 0:00:11]} 30. c3 {[%emt 0:00:59]} dxe3 {[%emt 0:01:14]} 31. Qa3+ {[%emt 0:00:20]} b4 {[%emt 0:00:01]} 32. cxb4 {[%emt 0:00:01]} Qb5 {[%emt 0:00:43]} 33. Nc5 {[%emt 0:00:49]} Qe2 {[%emt 0:00:09]} 34. Nd3 {[%emt 0:00:27]} Nd4 {[%emt 0:00:23]} 35. b5+ {[%emt 0:00:02]} Kf6 {[%emt 0:00:02]} 36. Qb2 {[%emt 0:01:53]} Qxb2 {[%emt 0:00:10]} 37. Nxb2 {[%emt 0:00:02]} Bxg2 {[%emt 0:00:00]} 0-1

[Event "European Online Club-ch-F 2021"]
[Site "Online"]
[Date "2021.03.27"]
[Round "9.10"]
[White "Azarov, Sergei"]
[Black "Maatoug, Redwan"]
[Result "0-1"]
[ECO "B67"]
[WhiteElo "2604"]
[BlackElo "2202"]
[Annotator "ChessBase"]
[PlyCount "68"]
[EventDate "2021.03.27"]
[EventType "team-tourn"]
[EventCountry "NET"]
[SourceTitle "playchess.com"]
[Source "ChessBase"]
[SourceQuality "1"]
[TimeControl "900+5"]

1. e4 {[%emt 0:00:00]} c5 {[%emt 0:00:04]} 2. Nf3 {[%emt 0:00:04]} Nc6 {[%emt 0:00:03]} 3. d4 {[%emt 0:00:03]} cxd4 {[%emt 0:00:04]} 4. Nxd4 {[%emt 0:00:01]} Nf6 {[%emt 0:00:12]} 5. Nc3 {[%emt 0:00:02]} d6 {[%emt 0:00:24]} 6. Bg5 {[%emt 0:00:04]} e6 {[%emt 0:00:11]} 7. Qd2 {[%emt 0:00:05]} a6 {[%emt 0:00:23]} 8. O-O-O {[%emt 0:00:15]} Bd7 {[%emt 0:00:04]} 9. f4 {[%emt 0:00:07]} h6 {[%emt 0:00:02]} 10. Bxf6 {[%emt 0:00:09]} Qxf6 {[%emt 0:00:04]} 11. Nf3 {[%emt 0:00:19]} Rd8 {[%emt 0:01:45]} 12. h4 {[%emt 0:00:17]} h5 {[%emt 0:00:25]} 13. g3 {[%emt 0:00:43]} g6 {[%emt 0:00:04]} 14. Ng5 {[%emt 0:01:12]} Be7 {[%emt 0:00:14]} 15. Kb1 {[%emt 0:00:48]} b5 {[%emt 0:00:20]} 16. Be2 {[%emt 0:01:05]} Qg7 {[%emt 0:01:55]} 17. Bf3 {[%emt 0:01:29]} Na5 {[%emt 0:03:04]} 18. Nxb5 {[%emt 0:02:51]} Bxb5 {[%emt 0:01:04]} 19. Qxa5 {[%emt 0:00:05]} O-O {[%emt 0:00:01]} 20. a4 {[%emt 0:01:02]} Bc4 {[%emt 0:00:46]} 21. e5 {[%emt 0:01:02]} dxe5 {[%emt 0:00:57]} 22. fxe5 {[%emt 0:00:03]} Rb8 {[%emt 0:00:03]} 23. Qc7 {[%emt 0:02:34]} Ba3 {[%emt 0:00:40]} 24. Qxc4 {[%emt 0:00:05]} Rxb2+ {[%emt 0:01:11]} 25. Ka1 {[%emt 0:00:04]} Qxe5 {[%emt 0:00:08]} 26. c3 {[%emt 0:00:08]} Rc2 {[%emt 0:00:27]} 27. Ne4 {[%emt 0:01:41]} Qb8 {[%emt 0:00:30]} 28. Rb1 {[%emt 0:00:04]} Bb2+ {[%emt 0:00:02]} 29. Ka2 {[%emt 0:00:01]} Bxc3+ {[%emt 0:00:02]} 30. Ka3 {[%emt 0:00:01]} Bb2+ {[%emt 0:00:19]} 31. Ka2 {[%emt 0:00:03]} Rxc4 {[%emt 0:00:05]} 32. Rxb2 {[%emt 0:00:01]} Rxa4+ {[%emt 0:00:03]} 33. Kb1 {[%emt 0:00:03]} Rb4 {[%emt 0:00:01]} 34. Rhh2 {[%emt 0:00:02]} a5 {[%emt 0:00:03]} 0-1

[Event "European Online Club-ch-F 2021"]
[Site "Online"]
[Date "2021.03.27"]
[Round "9.11"]
[White "Cantin, Loic"]
[Black "Zhigalko, Andrey"]
[Result "0-1"]
[ECO "B30"]
[WhiteElo "2182"]
[BlackElo "2517"]
[Annotator "ChessBase"]
[PlyCount "64"]
[EventDate "2021.03.27"]
[EventType "team-tourn"]
[EventCountry "NET"]
[SourceTitle "playchess.com"]
[Source "ChessBase"]
[SourceQuality "1"]
[TimeControl "900+5"]

1. Nf3 {[%emt 0:00:00]} c5 {[%emt 0:00:05]} 2. e4 {[%emt 0:00:08]} Nc6 {[%emt 0:00:05]} 3. Bb5 {[%emt 0:00:04]} Nf6 {[%emt 0:00:04]} 4. Nc3 {[%emt 0:00:06]} Qc7 {[%emt 0:00:05]} 5. d3 {[%emt 0:00:22]} d6 {[%emt 0:00:30]} 6. h3 {[%emt 0:00:11]} e6 {[%emt 0:00:31]} 7. O-O {[%emt 0:00:13]} Be7 {[%emt 0:00:15]} 8. e5 {[%emt 0:01:15]} dxe5 {[%emt 0:00:15]} 9. Bxc6+ {[%emt 0:00:08]} bxc6 {[%emt 0:00:49]} 10. Re1 {[%emt 0:00:07]} Nd7 {[%emt 0:00:24]} 11. b3 {[%emt 0:00:23]} O-O {[%emt 0:00:57]} 12. Qe2 {[%emt 0:00:30]} f6 {[%emt 0:01:45]} 13. Nd2 {[%emt 0:00:23]} a5 {[%emt 0:01:24]} 14. Ba3 {[%emt 0:00:41]} Nb8 {[%emt 0:02:16]} 15. Na4 {[%emt 0:01:19]} Na6 {[%emt 0:00:04]} 16. c3 {[%emt 0:01:31]} Rd8 {[%emt 0:01:07]} 17. Nc4 {[%emt 0:00:59]} Rb8 {[%emt 0:00:22]} 18. Rad1 {[%emt 0:00:43]} Bf8 {[%emt 0:00:34]} 19. Qe3 {[%emt 0:00:34]} Rd5 {[%emt 0:00:03]} 20. Qg3 {[%emt 0:00:38]} Rb7 {[%emt 0:01:05]} 21. Re4 {[%emt 0:00:41]} Qd8 {[%emt 0:00:20]} 22. Nab2 {[%emt 0:01:34]} Bd7 {[%emt 0:01:18]} 23. Qh4 {[%emt 0:02:01]} Be8 {[%emt 0:00:18]} 24. Ne3 {[%emt 0:00:36]} Nc7 {[%emt 0:00:23]} 25. Rc4 {[%emt 0:00:32]} Nb5 {[%emt 0:00:21]} 26. Nxd5 {[%emt 0:00:21]} Nxa3 {[%emt 0:00:46]} 27. Ra4 {[%emt 0:00:15]} cxd5 {[%emt 0:00:28]} 28. Rxa3 {[%emt 0:00:31]} c4 {[%emt 0:00:02]} 29. b4 {[%emt 0:00:25]} axb4 {[%emt 0:00:00]} 30. cxb4 {[%emt 0:00:01]} Rxb4 {[%emt 0:00:15]} 31. Rd2 {[%emt 0:00:10]} c3 {[%emt 0:00:06]} 32. Rxc3 {[%emt 0:00:02]} Rxh4 {[%emt 0:00:03]} 0-1

[Event "European Online Club-ch-F 2021"]
[Site "Online"]
[Date "2021.03.27"]
[Round "9.12"]
[White "Kazakouski, Valery"]
[Black "Saatdjian, Stephane"]
[Result "1/2-1/2"]
[ECO "E65"]
[WhiteElo "2476"]
[BlackElo "2131"]
[Annotator "ChessBase"]
[PlyCount "65"]
[EventDate "2021.03.27"]
[EventType "team-tourn"]
[EventCountry "NET"]
[SourceTitle "playchess.com"]
[Source "ChessBase"]
[SourceQuality "1"]
[TimeControl "900+5"]

1. d4 {[%emt 0:00:00]} Nf6 {[%emt 0:00:03]} 2. Nf3 {[%emt 0:00:02]} g6 {[%emt 0:00:01]} 3. c4 {[%emt 0:00:02]} c5 {[%emt 0:00:01]} 4. g3 {[%emt 0:00:02]} cxd4 {[%emt 0:00:13]} 5. Nxd4 {[%emt 0:00:00]} Nc6 {[%emt 0:00:01]} 6. Bg2 {[%emt 0:00:01]} Bg7 {[%emt 0:00:01]} 7. O-O {[%emt 0:00:02]} O-O {[%emt 0:00:01]} 8. Nc3 {[%emt 0:00:01]} d6 {[%emt 0:00:01]} 9. Nxc6 {[%emt 0:00:02]} bxc6 {[%emt 0:00:01]} 10. Bxc6 {[%emt 0:00:00]} Rb8 {[%emt 0:00:01]} 11. Bg2 {[%emt 0:00:02]} Qa5 {[%emt 0:00:01]} 12. Qd2 {[%emt 0:00:01]} Qa6 {[%emt 0:03:45]} 13. b3 {[%emt 0:01:29]} Rxb3 {[%emt 0:00:46]} 14. axb3 {[%emt 0:00:09]} Qxa1 {[%emt 0:00:03]} 15. Nb5 {[%emt 0:01:39]} a6 {[%emt 0:02:28]} 16. Bb2 {[%emt 0:01:16]} Ne4 {[%emt 0:01:37]} 17. Rxa1 {[%emt 0:00:04]} Nxd2 {[%emt 0:00:03]} 18. Bxg7 {[%emt 0:00:02]} Kxg7 {[%emt 0:01:34]} 19. Nd4 {[%emt 0:00:03]} f5 {[%emt 0:01:29]} 20. Rd1 {[%emt 0:01:53]} Ne4 {[%emt 0:00:06]} 21. f3 {[%emt 0:00:22]} Nc5 {[%emt 0:00:24]} 22. b4 {[%emt 0:00:12]} Ne6 {[%emt 0:00:01]} 23. Nc6 {[%emt 0:00:11]} Kf6 {[%emt 0:00:20]} 24. f4 {[%emt 0:00:24]} Bb7 {[%emt 0:00:59]} 25. Ne5 {[%emt 0:02:04]} dxe5 {[%emt 0:00:57]} 26. fxe5+ {[%emt 0:00:05]} Kxe5 {[%emt 0:00:03]} 27. Bxb7 {[%emt 0:00:00]} Rb8 {[%emt 0:01:08]} 28. Rd7 {[%emt 0:01:36]} Kf6 {[%emt 0:00:02]} 29. c5 {[%emt 0:03:06]} Nf8 {[%emt 0:00:15]} 30. Rc7 {[%emt 0:00:02]} Ne6 {[%emt 0:00:03]} 31. Rd7 {[%emt 0:00:01]} Nf8 {[%emt 0:00:01]} 32. Rc7 {[%emt 0:00:14]} Ne6 {[%emt 0:00:02]} 33. Rd7 {[%emt 0:00:01]} 1/2-1/2

[Event "European Online Club-ch-F 2021"]
[Site "Online"]
[Date "2021.03.27"]
[Round "9.13"]
[White "Isik, Alparslan"]
[Black "Kovalenko, Igor"]
[Result "0-1"]
[ECO "A40"]
[WhiteElo "2321"]
[BlackElo "2643"]
[Annotator "ChessBase"]
[PlyCount "66"]
[EventDate "2021.03.27"]
[EventType "team-tourn"]
[EventCountry "NET"]
[SourceTitle "playchess.com"]
[Source "ChessBase"]
[SourceQuality "1"]
[TimeControl "900+5"]

1. d4 {[%emt 0:00:00]} e6 {[%emt 0:00:04]} 2. c4 {[%emt 0:00:03]} b6 {[%emt 0:00:02]} 3. Nf3 {[%emt 0:00:07]} Bb7 {[%emt 0:00:01]} 4. g3 {[%emt 0:00:07]} Bb4+ {[%emt 0:00:09]} 5. Bd2 {[%emt 0:00:30]} Bxf3 {[%emt 0:00:04]} 6. exf3 {[%emt 0:00:02]} a5 {[%emt 0:00:01]} 7. Nc3 {[%emt 0:00:06]} Ne7 {[%emt 0:00:05]} 8. d5 {[%emt 0:01:43]} O-O {[%emt 0:00:22]} 9. Bg2 {[%emt 0:00:44]} e5 {[%emt 0:00:08]} 10. f4 {[%emt 0:00:26]} exf4 {[%emt 0:00:06]} 11. Bxf4 {[%emt 0:00:02]} Ng6 {[%emt 0:00:06]} 12. Be3 {[%emt 0:00:10]} Bxc3+ {[%emt 0:00:15]} 13. bxc3 {[%emt 0:00:04]} d6 {[%emt 0:00:01]} 14. O-O {[%emt 0:00:16]} Ne5 {[%emt 0:00:03]} 15. Qd4 {[%emt 0:00:08]} Nbd7 {[%emt 0:00:03]} 16. f4 {[%emt 0:00:09]} Ng4 {[%emt 0:00:02]} 17. Bd2 {[%emt 0:00:02]} f5 {[%emt 0:00:02]} 18. Rae1 {[%emt 0:00:04]} Nc5 {[%emt 0:00:02]} 19. Bc1 {[%emt 0:00:40]} Qd7 {[%emt 0:00:04]} 20. Ba3 {[%emt 0:00:27]} Rae8 {[%emt 0:00:07]} 21. Bxc5 {[%emt 0:00:18]} bxc5 {[%emt 0:00:02]} 22. Qd3 {[%emt 0:00:02]} g6 {[%emt 0:00:06]} 23. Re6 {[%emt 0:00:06]} Kg7 {[%emt 0:00:10]} 24. Rfe1 {[%emt 0:00:04]} Nf6 {[%emt 0:00:02]} 25. h3 {[%emt 0:00:23]} h5 {[%emt 0:00:27]} 26. Bf3 {[%emt 0:00:13]} Qd8 {[%emt 0:00:14]} 27. g4 {[%emt 0:00:18]} hxg4 {[%emt 0:00:06]} 28. hxg4 {[%emt 0:00:02]} fxg4 {[%emt 0:00:02]} 29. Bxg4 {[%emt 0:00:07]} Rxe6 {[%emt 0:00:02]} 30. Rxe6 {[%emt 0:00:48]} Re8 {[%emt 0:00:13]} 31. f5 {[%emt 0:01:26]} Rxe6 {[%emt 0:00:08]} 32. dxe6 {[%emt 0:00:42]} Nxg4 {[%emt 0:00:02]} 33. fxg6 {[%emt 0:00:47]} Ne5 {[%emt 0:00:11]} 0-1

[Event "European Online Club-ch-F 2021"]
[Site "Online"]
[Date "2021.03.27"]
[Round "9.14"]
[White "Moiseenko, Alexander"]
[Black "Karaoglan, Doruk"]
[Result "1-0"]
[ECO "E70"]
[WhiteElo "2620"]
[BlackElo "2230"]
[Annotator "ChessBase"]
[PlyCount "85"]
[EventDate "2021.03.27"]
[EventType "team-tourn"]
[EventCountry "NET"]
[SourceTitle "playchess.com"]
[Source "ChessBase"]
[SourceQuality "1"]
[TimeControl "900+5"]

1. d4 {[%emt 0:00:00]} Nf6 {[%emt 0:00:05]} 2. c4 {[%emt 0:00:02]} g6 {[%emt 0:00:02]} 3. Nc3 {[%emt 0:00:02]} Bg7 {[%emt 0:00:01]} 4. e4 {[%emt 0:00:01]} d6 {[%emt 0:00:02]} 5. Bd3 {[%emt 0:00:01]} Nc6 {[%emt 0:00:29]} 6. Nge2 {[%emt 0:00:04]} e5 {[%emt 0:00:31]} 7. d5 {[%emt 0:00:03]} Nd4 {[%emt 0:00:53]} 8. Nxd4 {[%emt 0:00:33]} exd4 {[%emt 0:00:02]} 9. Ne2 {[%emt 0:00:04]} O-O {[%emt 0:00:32]} 10. O-O {[%emt 0:00:12]} Nd7 {[%emt 0:00:29]} 11. Bf4 {[%emt 0:01:10]} Re8 {[%emt 0:00:21]} 12. f3 {[%emt 0:00:16]} a5 {[%emt 0:02:24]} 13. Rb1 {[%emt 0:02:44]} Nc5 {[%emt 0:00:08]} 14. Bc2 {[%emt 0:02:15]} f5 {[%emt 0:00:36]} 15. Nxd4 {[%emt 0:00:15]} fxe4 {[%emt 0:00:02]} 16. fxe4 {[%emt 0:00:03]} Nxe4 {[%emt 0:00:12]} 17. Ba4 {[%emt 0:01:28]} Bg4 {[%emt 0:00:43]} 18. Qxg4 {[%emt 0:00:31]} Bxd4+ {[%emt 0:00:03]} 19. Kh1 {[%emt 0:00:01]} Nf2+ {[%emt 0:00:32]} 20. Rxf2 {[%emt 0:00:03]} Bxf2 {[%emt 0:00:02]} 21. Bxe8 {[%emt 0:00:07]} Qxe8 {[%emt 0:00:03]} 22. Bd2 {[%emt 0:01:34]} Qe7 {[%emt 0:01:06]} 23. Bc3 {[%emt 0:00:13]} b6 {[%emt 0:00:25]} 24. Rf1 {[%emt 0:00:20]} Re8 {[%emt 0:00:41]} 25. Qf3 {[%emt 0:01:22]} Bh4 {[%emt 0:00:29]} 26. Qf4 {[%emt 0:00:35]} Rf8 {[%emt 0:00:21]} 27. Qxf8+ {[%emt 0:00:06]} Qxf8 {[%emt 0:00:03]} 28. Rxf8+ {[%emt 0:00:02]} Kxf8 {[%emt 0:00:01]} 29. g3 {[%emt 0:00:08]} Bg5 {[%emt 0:00:05]} 30. Kg2 {[%emt 0:00:04]} Ke7 {[%emt 0:00:03]} 31. b3 {[%emt 0:00:06]} Bf6 {[%emt 0:00:13]} 32. Bd2 {[%emt 0:00:03]} Be5 {[%emt 0:01:19]} 33. Kf3 {[%emt 0:00:03]} Kf6 {[%emt 0:00:03]} 34. h3 {[%emt 0:00:10]} h5 {[%emt 0:00:13]} 35. g4 {[%emt 0:00:03]} h4 {[%emt 0:01:58]} 36. Ke4 {[%emt 0:00:07]} g5 {[%emt 0:00:04]} 37. a4 {[%emt 0:00:34]} Kg6 {[%emt 0:00:31]} 38. b4 {[%emt 0:00:02]} axb4 {[%emt 0:00:02]} 39. Bxb4 {[%emt 0:00:02]} Bf6 {[%emt 0:00:24]} 40. Bd2 {[%emt 0:00:04]} Be7 {[%emt 0:00:45]} 41. a5 {[%emt 0:00:05]} bxa5 {[%emt 0:00:03]} 42. Bxa5 {[%emt 0:00:02]} Bd8 {[%emt 0:00:01]} 43. c5 {[%emt 0:00:07]} 1-0

[Event "European Online Club-ch-F 2021"]
[Site "Online"]
[Date "2021.03.27"]
[Round "9.15"]
[White "Ozturk, Efe Hakan"]
[Black "Smirin, Ilia"]
[Result "0-1"]
[ECO "E62"]
[WhiteElo "2030"]
[BlackElo "2614"]
[Annotator "ChessBase"]
[PlyCount "132"]
[EventDate "2021.03.27"]
[EventType "team-tourn"]
[EventCountry "NET"]
[SourceTitle "playchess.com"]
[Source "ChessBase"]
[SourceQuality "1"]
[TimeControl "900+5"]

1. Nf3 {[%emt 0:00:00]} Nf6 {[%emt 0:00:05]} 2. c4 {[%emt 0:00:02]} g6 {[%emt 0:00:03]} 3. g3 {[%emt 0:00:15]} Bg7 {[%emt 0:00:04]} 4. Bg2 {[%emt 0:00:01]} O-O {[%emt 0:00:02]} 5. O-O {[%emt 0:00:12]} d6 {[%emt 0:00:03]} 6. d4 {[%emt 0:00:02]} Nc6 {[%emt 0:00:09]} 7. Nc3 {[%emt 0:00:01]} Bf5 {[%emt 0:00:02]} 8. d5 {[%emt 0:00:42]} Na5 {[%emt 0:00:05]} 9. Nd4 {[%emt 0:00:02]} Bd7 {[%emt 0:00:03]} 10. Qd3 {[%emt 0:00:48]} c5 {[%emt 0:00:31]} 11. dxc6 {[%emt 0:01:10]} Nxc6 {[%emt 0:00:15]} 12. e3 {[%emt 0:00:57]} Rc8 {[%emt 0:00:23]} 13. b3 {[%emt 0:00:06]} Qa5 {[%emt 0:00:05]} 14. Bb2 {[%emt 0:00:16]} Qh5 {[%emt 0:00:05]} 15. Nxc6 {[%emt 0:03:13]} bxc6 {[%emt 0:00:09]} 16. Qe2 {[%emt 0:01:08]} Bg4 {[%emt 0:00:37]} 17. f3 {[%emt 0:00:04]} Bd7 {[%emt 0:00:03]} 18. e4 {[%emt 0:00:38]} Qa5 {[%emt 0:00:33]} 19. Qe1 {[%emt 0:00:33]} Be6 {[%emt 0:00:54]} 20. Rd1 {[%emt 0:00:43]} Nd7 {[%emt 0:00:21]} 21. Kh1 {[%emt 0:00:52]} Rfe8 {[%emt 0:00:16]} 22. Na4 {[%emt 0:00:25]} Qxe1 {[%emt 0:00:18]} 23. Rfxe1 {[%emt 0:00:03]} Bxb2 {[%emt 0:00:18]} 24. Nxb2 {[%emt 0:00:02]} Nc5 {[%emt 0:00:16]} 25. Nd3 {[%emt 0:00:10]} Nxd3 {[%emt 0:00:14]} 26. Rxd3 {[%emt 0:00:01]} a5 {[%emt 0:00:06]} 27. f4 {[%emt 0:00:41]} c5 {[%emt 0:00:50]} 28. e5 {[%emt 0:00:22]} dxe5 {[%emt 0:00:17]} 29. Rxe5 {[%emt 0:00:41]} Rc7 {[%emt 0:00:16]} 30. a4 {[%emt 0:01:15]} Rb8 {[%emt 0:00:20]} 31. Bf3 {[%emt 0:00:37]} Bf5 {[%emt 0:00:24]} 32. Rc3 {[%emt 0:00:34]} Rd8 {[%emt 0:00:29]} 33. g4 {[%emt 0:00:17]} Bc8 {[%emt 0:01:44]} 34. Kg2 {[%emt 0:00:21]} Rd4 {[%emt 0:00:09]} 35. Kg3 {[%emt 0:00:12]} e6 {[%emt 0:00:37]} 36. g5 {[%emt 0:00:17]} Kf8 {[%emt 0:00:03]} 37. h4 {[%emt 0:00:05]} Ke7 {[%emt 0:00:24]} 38. h5 {[%emt 0:00:10]} Kd6 {[%emt 0:00:02]} 39. Ree3 {[%emt 0:00:10]} Rd7 {[%emt 0:00:28]} 40. Rcd3 {[%emt 0:00:02]} Kc7 {[%emt 0:00:04]} 41. Rxd4 {[%emt 0:00:02]} Rxd4 {[%emt 0:00:07]} 42. hxg6 {[%emt 0:00:05]} hxg6 {[%emt 0:00:02]} 43. Be4 {[%emt 0:00:11]} Rd2 {[%emt 0:00:08]} 44. Kf3 {[%emt 0:00:02]} Bd7 {[%emt 0:00:26]} 45. Rd3 {[%emt 0:00:08]} Rh2 {[%emt 0:00:05]} 46. Kg3 {[%emt 0:00:02]} Rb2 {[%emt 0:00:04]} 47. Kf3 {[%emt 0:00:05]} Bc6 {[%emt 0:00:27]} 48. Bxc6 {[%emt 0:00:02]} Kxc6 {[%emt 0:00:01]} 49. Ke4 {[%emt 0:00:04]} Re2+ {[%emt 0:00:11]} 50. Re3 {[%emt 0:00:04]} Rxe3+ {[%emt 0:00:29]} 51. Kxe3 {[%emt 0:00:01]} Kd7 {[%emt 0:00:02]} 52. Kd3 {[%emt 0:00:09]} Ke7 {[%emt 0:00:04]} 53. Ke3 {[%emt 0:00:03]} f5 {[%emt 0:00:17]} 54. gxf6+ {[%emt 0:00:12]} Kxf6 {[%emt 0:00:01]} 55. Ke4 {[%emt 0:00:01]} Kf7 {[%emt 0:00:17]} 56. Ke3 {[%emt 0:00:04]} Ke7 {[%emt 0:00:05]} 57. Kd3 {[%emt 0:00:05]} e5 {[%emt 0:00:52]} 58. fxe5 {[%emt 0:00:05]} Ke6 {[%emt 0:00:01]} 59. Ke4 {[%emt 0:00:03]} g5 {[%emt 0:00:02]} 60. Kf3 {[%emt 0:00:08]} Kxe5 {[%emt 0:00:03]} 61. Kg4 {[%emt 0:00:02]} Kd4 {[%emt 0:00:07]} 62. Kxg5 {[%emt 0:00:01]} Kc3 {[%emt 0:00:02]} 63. Kf4 {[%emt 0:00:04]} Kxb3 {[%emt 0:00:02]} 64. Ke4 {[%emt 0:00:12]} Kxa4 {[%emt 0:00:09]} 65. Ke5 {[%emt 0:00:06]} Kb4 {[%emt 0:00:03]} 66. Kd5 {[%emt 0:00:00]} a4 {[%emt 0:00:02]} 0-1

[Event "European Online Club-ch-F 2021"]
[Site "Online"]
[Date "2021.03.27"]
[Round "9.16"]
[White "Fridman, Daniel"]
[Black "Camlar, Arda"]
[Result "1/2-1/2"]
[ECO "D11"]
[WhiteElo "2601"]
[BlackElo "1934"]
[Annotator "ChessBase"]
[PlyCount "132"]
[EventDate "2021.03.27"]
[EventType "team-tourn"]
[EventCountry "NET"]
[SourceTitle "playchess.com"]
[Source "ChessBase"]
[SourceQuality "1"]
[TimeControl "900+5"]

1. d4 {[%emt 0:00:00]} d5 {[%emt 0:00:06]} 2. c4 {[%emt 0:00:03]} c6 {[%emt 0:00:03]} 3. Nf3 {[%emt 0:00:02]} Nf6 {[%emt 0:00:03]} 4. Qb3 {[%emt 0:00:02]} e6 {[%emt 0:00:19]} 5. Bf4 {[%emt 0:00:02]} Nbd7 {[%emt 0:00:05]} 6. e3 {[%emt 0:00:03]} Be7 {[%emt 0:00:14]} 7. Nc3 {[%emt 0:00:02]} O-O {[%emt 0:00:01]} 8. Rc1 {[%emt 0:00:06]} Re8 {[%emt 0:00:27]} 9. Be2 {[%emt 0:00:56]} Nf8 {[%emt 0:00:32]} 10. O-O {[%emt 0:00:04]} Ng6 {[%emt 0:00:03]} 11. Bg3 {[%emt 0:00:04]} Nh5 {[%emt 0:00:25]} 12. Rfd1 {[%emt 0:00:22]} Nxg3 {[%emt 0:00:04]} 13. hxg3 {[%emt 0:00:00]} Bd6 {[%emt 0:00:36]} 14. e4 {[%emt 0:00:08]} dxe4 {[%emt 0:00:19]} 15. Nxe4 {[%emt 0:00:04]} Bc7 {[%emt 0:00:01]} 16. Bd3 {[%emt 0:00:24]} Bb6 {[%emt 0:02:10]} 17. Bb1 {[%emt 0:00:12]} h6 {[%emt 0:00:18]} 18. Ne5 {[%emt 0:00:25]} Nf8 {[%emt 0:00:48]} 19. c5 {[%emt 0:00:19]} Bc7 {[%emt 0:00:17]} 20. Nc4 {[%emt 0:00:22]} Qd5 {[%emt 0:00:18]} 21. Qc3 {[%emt 0:01:04]} Rd8 {[%emt 0:01:43]} 22. Ned6 {[%emt 0:00:19]} Qg5 {[%emt 0:01:03]} 23. f4 {[%emt 0:00:42]} Qe7 {[%emt 0:00:14]} 24. Qf3 {[%emt 0:00:29]} Rb8 {[%emt 0:00:41]} 25. b4 {[%emt 0:01:43]} Bd7 {[%emt 0:00:15]} 26. Ne4 {[%emt 0:00:13]} Be8 {[%emt 0:00:50]} 27. g4 {[%emt 0:00:05]} f6 {[%emt 0:00:11]} 28. Ncd6 {[%emt 0:00:44]} Bf7 {[%emt 0:00:23]} 29. a3 {[%emt 0:00:06]} e5 {[%emt 0:01:01]} 30. Nxf7 {[%emt 0:02:29]} Qxf7 {[%emt 0:00:10]} 31. dxe5 {[%emt 0:00:03]} fxe5 {[%emt 0:00:11]} 32. f5 {[%emt 0:00:02]} Nh7 {[%emt 0:00:52]} 33. Bc2 {[%emt 0:00:26]} Qe7 {[%emt 0:00:23]} 34. Bb3+ {[%emt 0:00:45]} Kh8 {[%emt 0:00:05]} 35. Qe3 {[%emt 0:01:03]} Rxd1+ {[%emt 0:00:09]} 36. Rxd1 {[%emt 0:00:02]} Rd8 {[%emt 0:00:03]} 37. Rd3 {[%emt 0:00:19]} Nf6 {[%emt 0:00:54]} 38. Rxd8+ {[%emt 0:02:24]} Qxd8 {[%emt 0:00:09]} 39. Nxf6 {[%emt 0:00:11]} Qxf6 {[%emt 0:00:05]} 40. Qe4 {[%emt 0:00:18]} Qd8 {[%emt 0:00:23]} 41. Kf2 {[%emt 0:00:32]} Qd2+ {[%emt 0:00:32]} 42. Kf3 {[%emt 0:00:08]} Bd8 {[%emt 0:00:41]} 43. Qc4 {[%emt 0:00:10]} Qf4+ {[%emt 0:00:04]} 44. Qxf4 {[%emt 0:00:02]} exf4 {[%emt 0:00:01]} 45. Be6 {[%emt 0:00:17]} Bf6 {[%emt 0:00:03]} 46. Bc8 {[%emt 0:00:02]} Bb2 {[%emt 0:00:02]} 47. a4 {[%emt 0:00:06]} Ba3 {[%emt 0:00:08]} 48. Bxb7 {[%emt 0:00:04]} Bxb4 {[%emt 0:00:02]} 49. Bxc6 {[%emt 0:00:02]} Bxc5 {[%emt 0:00:02]} 50. Kxf4 {[%emt 0:00:05]} Kg8 {[%emt 0:00:04]} 51. g5 {[%emt 0:00:02]} hxg5+ {[%emt 0:00:04]} 52. Kxg5 {[%emt 0:00:00]} Kf8 {[%emt 0:00:02]} 53. Kg6 {[%emt 0:00:02]} Bd4 {[%emt 0:00:10]} 54. Bb5 {[%emt 0:00:03]} Bc3 {[%emt 0:00:08]} 55. g4 {[%emt 0:00:12]} Bd4 {[%emt 0:00:09]} 56. Bc4 {[%emt 0:00:02]} Bc3 {[%emt 0:00:05]} 57. g5 {[%emt 0:00:05]} Bd2 {[%emt 0:00:04]} 58. Be6 {[%emt 0:00:05]} Bc1 {[%emt 0:00:03]} 59. Bd5 {[%emt 0:00:02]} Bd2 {[%emt 0:00:02]} 60. Bc4 {[%emt 0:00:02]} Bc1 {[%emt 0:00:02]} 61. a5 {[%emt 0:00:01]} Bd2 {[%emt 0:00:03]} 62. a6 {[%emt 0:00:02]} Bc1 {[%emt 0:00:02]} 63. f6 {[%emt 0:00:18]} gxf6 {[%emt 0:00:01]} 64. Kxf6 {[%emt 0:00:01]} Bb2+ {[%emt 0:00:03]} 65. Ke6 {[%emt 0:00:02]} Kg7 {[%emt 0:00:03]} 66. Bd3 {[%emt 0:00:03]} Bd4 {[%emt 0:00:01]} 1/2-1/2